[Event "*** Titled Tuesday Blitz"]
[Site "Chess.com"]
[Date "2020.05.26"]
[Round "3"]
[White "AlexZambrano"]
[Black "robertofabregas"]
[Result "0-1"]
[WhiteElo "2282"]
[BlackElo "2112"]
[TimeControl "180+1"]
[EndTime "10:27:05 PDT"]
[Termination "robertofabregas won by resignation"]

1. Nf3 {[%clk 0:03:00.6]} 1... Nf6 {[%clk 0:02:57.3]} 2. g3 {[%clk 0:02:59.6]}
2... d5 {[%clk 0:02:55.2]} 3. Bg2 {[%clk 0:02:59.4]} 3... c6 {[%clk 0:02:54.4]}
4. d4 {[%clk 0:02:59.6]} 4... Bf5 {[%clk 0:02:53.4]} 5. O-O {[%clk 0:02:59.7]}
5... Nbd7 {[%clk 0:02:53]} 6. c4 {[%clk 0:03:00.1]} 6... e6 {[%clk 0:02:53]} 7.
Nc3 {[%clk 0:03:00.5]} 7... Be7 {[%clk 0:02:49.5]} 8. Nh4 {[%clk 0:02:59.8]}
8... Bg6 {[%clk 0:02:44.4]} 9. Nxg6 {[%clk 0:02:59.6]} 9... hxg6 {[%clk
0:02:45.3]} 10. e4 {[%clk 0:02:58.4]} 10... dxe4 {[%clk 0:02:38.7]} 11. Nxe4
{[%clk 0:02:58.3]} 11... Nxe4 {[%clk 0:02:39.2]} 12. Bxe4 {[%clk 0:02:58.4]}
12... Nf6 {[%clk 0:02:39.7]} 13. Bg2 {[%clk 0:02:58.5]} 13... Qc7 {[%clk
0:02:26.6]} 14. Bf4 {[%clk 0:02:50.6]} 14... Bd6 {[%clk 0:02:26]} 15. Bxd6
{[%clk 0:02:44.4]} 15... Qxd6 {[%clk 0:02:26.9]} 16. d5 {[%clk 0:02:14.1]} 16...
cxd5 {[%clk 0:01:58.9]} 17. cxd5 {[%clk 0:02:12.3]} 17... Nxd5 {[%clk
0:01:56.1]} 18. Qa4+ {[%clk 0:02:09.4]} 18... Ke7 {[%clk 0:01:41.8]} 19. Rfd1
{[%clk 0:02:05.5]} 19... Rh5 {[%clk 0:01:09.1]} 20. Qb3 {[%clk 0:01:02.4]} 20...
Qb6 {[%clk 0:00:41.8]} 21. Rxd5 {[%clk 0:00:50.3]} 21... Qxb3 {[%clk 0:00:20.6]}
22. axb3 {[%clk 0:00:38]} 22... exd5 {[%clk 0:00:20.5]} 23. Ra5 {[%clk
0:00:30.8]} 23... b6 {[%clk 0:00:18.5]} 24. Rb5 {[%clk 0:00:29.4]} 24... Rd8
{[%clk 0:00:17.2]} 0-1

[Event "*** Titled Tuesday Blitz"]
[Site "Chess.com"]
[Date "2020.05.26"]
[Round "3"]
[White "LiamVrolijk"]
[Black "Tlerus"]
[Result "1-0"]
[WhiteElo "2792"]
[BlackElo "2586"]
[TimeControl "180+1"]
[EndTime "10:27:06 PDT"]
[Termination "LiamVrolijk won on time"]

1. d4 {[%clk 0:03:00.9]} 1... Nf6 {[%clk 0:02:59.7]} 2. c4 {[%clk 0:03:00.7]}
2... e5 {[%clk 0:02:59.6]} 3. dxe5 {[%clk 0:03:00.3]} 3... Ne4 {[%clk
0:02:59.8]} 4. g3 {[%clk 0:02:55.8]} 4... Bb4+ {[%clk 0:02:58.7]} 5. Nd2 {[%clk
0:02:54.2]} 5... Nc6 {[%clk 0:02:58.5]} 6. Bg2 {[%clk 0:02:52.2]} 6... Nxd2
{[%clk 0:02:57.6]} 7. Bxd2 {[%clk 0:02:53.1]} 7... Bxd2+ {[%clk 0:02:57.3]} 8.
Qxd2 {[%clk 0:02:54]} 8... Nxe5 {[%clk 0:02:57.5]} 9. Rc1 {[%clk 0:02:48.4]}
9... O-O {[%clk 0:02:55.7]} 10. Nh3 {[%clk 0:02:48.9]} 10... d6 {[%clk
0:02:49.3]} 11. Nf4 {[%clk 0:02:48.7]} 11... Bd7 {[%clk 0:02:35.3]} 12. O-O
{[%clk 0:02:48.1]} 12... Bc6 {[%clk 0:02:35.1]} 13. Nd5 {[%clk 0:02:48.5]} 13...
Re8 {[%clk 0:02:29.6]} 14. f4 {[%clk 0:02:41.7]} 14... Nd7 {[%clk 0:02:23.4]}
15. e4 {[%clk 0:02:41.9]} 15... Nc5 {[%clk 0:02:20.7]} 16. Rfe1 {[%clk 0:02:41]}
16... a5 {[%clk 0:02:20.6]} 17. b3 {[%clk 0:02:36.9]} 17... Bxd5 {[%clk
0:02:16.4]} 18. cxd5 {[%clk 0:02:36.5]} 18... b6 {[%clk 0:02:12.7]} 19. Qc3
{[%clk 0:02:32.7]} 19... Qd7 {[%clk 0:02:07.3]} 20. a3 {[%clk 0:02:31.2]} 20...
Qb5 {[%clk 0:02:06.4]} 21. b4 {[%clk 0:02:24.2]} 21... axb4 {[%clk 0:02:05.7]}
22. axb4 {[%clk 0:02:24.8]} 22... Nd3 {[%clk 0:02:02.9]} 23. Bf1 {[%clk
0:02:23.3]} 23... Qxb4 {[%clk 0:01:10.8]} 24. Bxd3 {[%clk 0:02:18.4]} 24... Qc5+
{[%clk 0:01:03.1]} 25. Qxc5 {[%clk 0:02:16]} 25... bxc5 {[%clk 0:01:01.5]} 26.
Ra1 {[%clk 0:02:16.3]} 26... Rab8 {[%clk 0:00:53.7]} 27. Reb1 {[%clk 0:02:13.9]}
27... Rb4 {[%clk 0:00:49.6]} 28. Rxb4 {[%clk 0:02:09.8]} 28... cxb4 {[%clk
0:00:50.5]} 29. Rb1 {[%clk 0:02:10.3]} 29... Rb8 {[%clk 0:00:50.6]} 30. Rb3
{[%clk 0:02:06.5]} 30... Kf8 {[%clk 0:00:50.2]} 31. Kf2 {[%clk 0:02:06.5]} 31...
Ke7 {[%clk 0:00:50]} 32. Ke3 {[%clk 0:02:07.1]} 32... Kd7 {[%clk 0:00:50.3]} 33.
Kd4 {[%clk 0:02:07.5]} 33... c5+ {[%clk 0:00:48.6]} 34. dxc6+ {[%clk 0:02:08.4]}
34... Kxc6 {[%clk 0:00:48.8]} 35. Kc4 {[%clk 0:02:07.8]} 35... f5 {[%clk
0:00:45.6]} 36. Rxb4 {[%clk 0:01:58.2]} 36... Ra8 {[%clk 0:00:35]} 37. exf5
{[%clk 0:01:55.1]} 37... d5+ {[%clk 0:00:35.1]} 38. Kd4 {[%clk 0:01:54.5]} 38...
Ra3 {[%clk 0:00:34.6]} 39. Rb2 {[%clk 0:01:42.3]} 39... Ra4+ {[%clk 0:00:33]}
40. Ke5 {[%clk 0:01:39.9]} 40... Ra3 {[%clk 0:00:32.4]} 41. Rc2+ {[%clk
0:01:39.5]} 41... Kd7 {[%clk 0:00:29.9]} 42. Bb5+ {[%clk 0:01:39]} 42... Kd8
{[%clk 0:00:28.7]} 43. Kxd5 {[%clk 0:01:37.7]} 43... h5 {[%clk 0:00:27.6]} 44.
Kd6 {[%clk 0:01:34]} 44... Ra8 {[%clk 0:00:24.1]} 45. Re2 {[%clk 0:01:33.1]}
45... Kc8 {[%clk 0:00:09.1]} 46. Re8+ {[%clk 0:01:30.5]} 46... Kb7 {[%clk
0:00:01.3]} 47. Bc6+ {[%clk 0:01:31.4]} 47... Kb6 {[%clk 0:00:01.4]} 48. Rxa8
{[%clk 0:01:29.9]} 1-0

[Event "*** Titled Tuesday Blitz"]
[Site "Chess.com"]
[Date "2020.05.26"]
[Round "3"]
[White "Giraffe_Chess"]
[Black "PavelShkapenko"]
[Result "0-1"]
[WhiteElo "2414"]
[BlackElo "2681"]
[TimeControl "180+1"]
[EndTime "10:27:07 PDT"]
[Termination "PavelShkapenko won by resignation"]

1. d4 {[%clk 0:03:00.9]} 1... Nf6 {[%clk 0:02:59.8]} 2. c4 {[%clk 0:03:00.7]}
2... e6 {[%clk 0:03:00.1]} 3. Nf3 {[%clk 0:03:00.2]} 3... Bb4+ {[%clk
0:03:00.1]} 4. Nbd2 {[%clk 0:02:59.2]} 4... d5 {[%clk 0:02:59]} 5. g3 {[%clk
0:02:54.8]} 5... O-O {[%clk 0:02:58.1]} 6. Bg2 {[%clk 0:02:54.9]} 6... b6 {[%clk
0:02:58.5]} 7. O-O {[%clk 0:02:54.8]} 7... Nbd7 {[%clk 0:02:58.9]} 8. Qc2 {[%clk
0:02:51]} 8... Bb7 {[%clk 0:02:58.1]} 9. Rd1 {[%clk 0:02:50.9]} 9... Be7 {[%clk
0:02:44.4]} 10. b3 {[%clk 0:02:50.1]} 10... c5 {[%clk 0:02:42.1]} 11. Bb2 {[%clk
0:02:47.8]} 11... Rc8 {[%clk 0:02:42.1]} 12. Rac1 {[%clk 0:02:20.1]} 12... dxc4
{[%clk 0:02:40.7]} 13. Nxc4 {[%clk 0:02:16.9]} 13... b5 {[%clk 0:02:37.3]} 14.
Nce5 {[%clk 0:02:11.3]} 14... cxd4 {[%clk 0:02:30.2]} 15. Qd2 {[%clk 0:02:04.4]}
15... Nxe5 {[%clk 0:02:28.7]} 16. Nxe5 {[%clk 0:02:03.9]} 16... Rxc1 {[%clk
0:02:27.5]} 17. Rxc1 {[%clk 0:01:59.2]} 17... Bxg2 {[%clk 0:02:27.2]} 18. Kxg2
{[%clk 0:02:00.1]} 18... Qd5+ {[%clk 0:02:27.2]} 19. Nf3 {[%clk 0:02:00.7]}
19... e5 {[%clk 0:02:26.9]} 20. e3 {[%clk 0:01:50.9]} 20... Ne4 {[%clk
0:02:18.1]} 21. Qd1 {[%clk 0:01:46.3]} 21... d3 {[%clk 0:02:11.4]} 22. Kg1
{[%clk 0:01:41.5]} 22... Bf6 {[%clk 0:01:40.6]} 23. Rc7 {[%clk 0:01:14]} 23...
a5 {[%clk 0:01:39.4]} 24. Ne1 {[%clk 0:01:09.6]} 24... Ng5 {[%clk 0:01:11.7]}
25. Qxd3 {[%clk 0:00:52.5]} 25... Nh3+ {[%clk 0:00:55.9]} 26. Kf1 {[%clk
0:00:50.4]} 26... Qh1+ {[%clk 0:00:56.4]} 27. Ke2 {[%clk 0:00:50.4]} 27... e4
{[%clk 0:00:43.3]} 28. Qc2 {[%clk 0:00:33.2]} 28... Bxb2 {[%clk 0:00:34.9]} 29.
Qxb2 {[%clk 0:00:34.1]} 29... Qxh2 {[%clk 0:00:35.2]} 30. Kd1 {[%clk 0:00:16.3]}
30... Nxf2+ {[%clk 0:00:34.5]} 31. Kc1 {[%clk 0:00:16.1]} 31... Qxg3 {[%clk
0:00:34.6]} 32. Kb1 {[%clk 0:00:14.8]} 32... Qxc7 {[%clk 0:00:34]} 0-1

[Event "*** Titled Tuesday Blitz"]
[Site "Chess.com"]
[Date "2020.05.26"]
[Round "3"]
[White "Mbneu"]
[Black "plumalka"]
[Result "1-0"]
[WhiteElo "2214"]
[BlackElo "2416"]
[TimeControl "180+1"]
[EndTime "10:27:07 PDT"]
[Termination "Mbneu won by resignation"]

1. d4 {[%clk 0:02:59.8]} 1... Nf6 {[%clk 0:02:59.8]} 2. c4 {[%clk 0:03:00.1]}
2... c5 {[%clk 0:02:59.7]} 3. d5 {[%clk 0:02:59.8]} 3... b5 {[%clk 0:03:00]} 4.
a4 {[%clk 0:02:59.8]} 4... bxc4 {[%clk 0:02:55.2]} 5. Nc3 {[%clk 0:02:58.8]}
5... d6 {[%clk 0:02:54.2]} 6. e4 {[%clk 0:02:59.2]} 6... g6 {[%clk 0:02:53.8]}
7. Bxc4 {[%clk 0:02:58.1]} 7... Bg7 {[%clk 0:02:54]} 8. f4 {[%clk 0:02:58.5]}
8... O-O {[%clk 0:02:48.8]} 9. Nf3 {[%clk 0:02:58.9]} 9... Ba6 {[%clk
0:02:47.9]} 10. Bb5 {[%clk 0:02:58]} 10... Bxb5 {[%clk 0:02:37.3]} 11. axb5
{[%clk 0:02:57]} 11... Nbd7 {[%clk 0:02:34]} 12. O-O {[%clk 0:02:52.6]} 12... a6
{[%clk 0:02:29.5]} 13. bxa6 {[%clk 0:02:38.1]} 13... Qb6 {[%clk 0:02:28.5]} 14.
Qe2 {[%clk 0:02:37]} 14... Rfb8 {[%clk 0:02:02.2]} 15. e5 {[%clk 0:02:30]} 15...
dxe5 {[%clk 0:01:40.2]} 16. fxe5 {[%clk 0:02:28]} 16... Ng4 {[%clk 0:01:34.3]}
17. e6 {[%clk 0:02:26.9]} 17... fxe6 {[%clk 0:01:32.2]} 18. Ng5 {[%clk
0:02:20.8]} 18... c4+ {[%clk 0:01:09.8]} 19. Kh1 {[%clk 0:02:16.6]} 19... Rf8
{[%clk 0:01:09.2]} 20. Bf4 {[%clk 0:01:55.2]} 20... exd5 {[%clk 0:00:29.4]} 21.
Qxg4 {[%clk 0:01:14.1]} 21... Nc5 {[%clk 0:00:28.1]} 22. Nxd5 {[%clk 0:01:07.8]}
22... Qxb2 {[%clk 0:00:27.7]} 23. Nxe7+ {[%clk 0:00:59.3]} 23... Kh8 {[%clk
0:00:27.5]} 24. Nxg6+ {[%clk 0:00:57.8]} 24... Kg8 {[%clk 0:00:22.6]} 25. Ne7+
{[%clk 0:00:33.6]} 25... Kh8 {[%clk 0:00:22.5]} 26. Ng6+ {[%clk 0:00:24.5]}
26... Kg8 {[%clk 0:00:22.3]} 27. Qh5 {[%clk 0:00:24.7]} 27... h6 {[%clk
0:00:20.5]} 28. Ne7+ {[%clk 0:00:23.9]} 28... Kh8 {[%clk 0:00:20.2]} 29. Qg6
{[%clk 0:00:24.1]} 29... hxg5 {[%clk 0:00:20.2]} 30. Qh5+ {[%clk 0:00:23.8]} 1-0

[Event "*** Titled Tuesday Blitz"]
[Site "Chess.com"]
[Date "2020.05.26"]
[Round "3"]
[White "Gurvich_Vitaly"]
[Black "Zarikovs1999"]
[Result "1-0"]
[WhiteElo "2546"]
[BlackElo "2344"]
[TimeControl "180+1"]
[EndTime "10:27:08 PDT"]
[Termination "Gurvich_Vitaly won by checkmate"]

1. e4 {[%clk 0:03:00.9]} 1... c5 {[%clk 0:02:59]} 2. Nf3 {[%clk 0:03:00.2]} 2...
Nf6 {[%clk 0:02:59.6]} 3. e5 {[%clk 0:02:51.7]} 3... Nd5 {[%clk 0:02:59.8]} 4.
Nc3 {[%clk 0:02:52.3]} 4... e6 {[%clk 0:02:59.4]} 5. Nxd5 {[%clk 0:02:47.5]}
5... exd5 {[%clk 0:03:00.3]} 6. d4 {[%clk 0:02:47.1]} 6... Nc6 {[%clk
0:03:00.7]} 7. dxc5 {[%clk 0:02:47]} 7... Bxc5 {[%clk 0:03:01.6]} 8. Qxd5 {[%clk
0:02:46.8]} 8... Qb6 {[%clk 0:03:01]} 9. Bc4 {[%clk 0:02:46.9]} 9... Bxf2+
{[%clk 0:02:51.9]} 10. Ke2 {[%clk 0:02:46.8]} 10... O-O {[%clk 0:02:52.8]} 11.
Rf1 {[%clk 0:02:44.8]} 11... Bc5 {[%clk 0:02:34]} 12. c3 {[%clk 0:02:13.5]}
12... Ne7 {[%clk 0:02:20.8]} 13. Qe4 {[%clk 0:02:08]} 13... d5 {[%clk
0:02:17.5]} 14. exd6 {[%clk 0:02:05.4]} 14... Qxd6 {[%clk 0:01:55.9]} 15. Ng5
{[%clk 0:01:13.6]} 15... Bf5 {[%clk 0:01:33.9]} 16. Rxf5 {[%clk 0:01:10.6]}
16... Nxf5 {[%clk 0:01:34.8]} 17. Qxf5 {[%clk 0:01:11.5]} 17... Rae8+ {[%clk
0:01:33.8]} 18. Kf3 {[%clk 0:01:10.5]} 18... Qd1+ {[%clk 0:01:23]} 19. Kg3
{[%clk 0:01:08.1]} 19... Qe1+ {[%clk 0:00:51.2]} 20. Kh3 {[%clk 0:01:02.6]}
20... g6 {[%clk 0:00:27.7]} 21. Qxc5 {[%clk 0:00:54.6]} 21... Re5 {[%clk
0:00:27.6]} 22. Qd4 {[%clk 0:00:45.9]} 22... Rf5 {[%clk 0:00:02.9]} 23. Qh4
{[%clk 0:00:26.3]} 23... Qe2 {[%clk 0:00:01.6]} 24. Qxh7# {[%clk 0:00:24.5]} 1-0

[Event "*** Titled Tuesday Blitz"]
[Site "Chess.com"]
[Date "2020.05.26"]
[Round "3"]
[White "Nikolaj_6"]
[Black "VALPARAISO37"]
[Result "1/2-1/2"]
[WhiteElo "2531"]
[BlackElo "2345"]
[TimeControl "180+1"]
[EndTime "10:27:08 PDT"]
[Termination "Game drawn - insufficient material"]

1. e4 {[%clk 0:03:00.9]} 1... e5 {[%clk 0:02:59.6]} 2. Nf3 {[%clk 0:03:00.9]}
2... Nc6 {[%clk 0:02:59.7]} 3. Bb5 {[%clk 0:03:01]} 3... a6 {[%clk 0:02:59.5]}
4. Ba4 {[%clk 0:03:01.2]} 4... Nf6 {[%clk 0:02:59.1]} 5. Qe2 {[%clk 0:03:01.5]}
5... b5 {[%clk 0:02:58.2]} 6. Bb3 {[%clk 0:03:01.6]} 6... Bc5 {[%clk 0:02:58]}
7. a4 {[%clk 0:03:01.7]} 7... Rb8 {[%clk 0:02:57]} 8. axb5 {[%clk 0:03:01.5]}
8... axb5 {[%clk 0:02:57.5]} 9. O-O {[%clk 0:03:02]} 9... d6 {[%clk 0:02:58.1]}
10. d3 {[%clk 0:03:02.5]} 10... Bg4 {[%clk 0:02:57.5]} 11. Be3 {[%clk
0:03:02.7]} 11... Nd4 {[%clk 0:02:57.3]} 12. Bxd4 {[%clk 0:03:02.3]} 12... Bxd4
{[%clk 0:02:57.6]} 13. c3 {[%clk 0:03:02.7]} 13... Bb6 {[%clk 0:02:58.1]} 14.
Nbd2 {[%clk 0:03:01]} 14... O-O {[%clk 0:02:57.6]} 15. h3 {[%clk 0:03:01.1]}
15... Bd7 {[%clk 0:02:57.1]} 16. Ne1 {[%clk 0:02:53.4]} 16... g6 {[%clk
0:02:54.6]} 17. Kh2 {[%clk 0:02:50.1]} 17... Nh5 {[%clk 0:02:54.1]} 18. g3
{[%clk 0:02:50.4]} 18... Qg5 {[%clk 0:02:52.6]} 19. Ndf3 {[%clk 0:02:34.5]}
19... Qf6 {[%clk 0:02:51.2]} 20. Qd2 {[%clk 0:02:28]} 20... Kg7 {[%clk
0:02:49.8]} 21. Qg5 {[%clk 0:02:27.2]} 21... h6 {[%clk 0:02:49.3]} 22. Qxf6+
{[%clk 0:02:26.8]} 22... Kxf6 {[%clk 0:02:49.4]} 23. Nc2 {[%clk 0:02:23.8]}
23... Ra8 {[%clk 0:02:45.4]} 24. Kg2 {[%clk 0:02:23.8]} 24... Kg7 {[%clk
0:02:42.8]} 25. Nb4 {[%clk 0:02:22.3]} 25... c6 {[%clk 0:02:40.6]} 26. Bc2
{[%clk 0:02:15]} 26... f5 {[%clk 0:02:39.1]} 27. exf5 {[%clk 0:02:08.6]} 27...
gxf5 {[%clk 0:02:39.1]} 28. Nh4 {[%clk 0:02:07.2]} 28... f4 {[%clk 0:02:38.2]}
29. g4 {[%clk 0:02:04]} 29... Nf6 {[%clk 0:02:37.6]} 30. d4 {[%clk 0:01:48.4]}
30... e4 {[%clk 0:02:27.6]} 31. d5 {[%clk 0:01:43.2]} 31... c5 {[%clk
0:02:25.2]} 32. Nc6 {[%clk 0:01:43.3]} 32... Rfe8 {[%clk 0:02:01.4]} 33. Rfd1
{[%clk 0:01:30]} 33... c4 {[%clk 0:01:58.8]} 34. Nd4 {[%clk 0:01:26.3]} 34...
Bxd4 {[%clk 0:01:52.9]} 35. Rxa8 {[%clk 0:01:25.3]} 35... Rxa8 {[%clk 0:01:51]}
36. Rxd4 {[%clk 0:01:25.9]} 36... Re8 {[%clk 0:01:48.9]} 37. b3 {[%clk
0:01:25.6]} 37... Re5 {[%clk 0:01:44.1]} 38. bxc4 {[%clk 0:01:22.9]} 38... bxc4
{[%clk 0:01:44.1]} 39. f3 {[%clk 0:01:23.4]} 39... Rxd5 {[%clk 0:01:37.1]} 40.
fxe4 {[%clk 0:01:18.3]} 40... Rxd4 {[%clk 0:01:26.6]} 41. cxd4 {[%clk
0:01:18.4]} 41... d5 {[%clk 0:01:22.4]} 42. e5 {[%clk 0:01:13.2]} 42... Ne4
{[%clk 0:01:22.5]} 43. Kf3 {[%clk 0:01:12.8]} 43... h5 {[%clk 0:01:21.2]} 44.
Kxf4 {[%clk 0:01:11.8]} 44... hxg4 {[%clk 0:01:18.8]} 45. hxg4 {[%clk 0:01:12]}
45... Nd2 {[%clk 0:01:15.9]} 46. Nf5+ {[%clk 0:01:09.6]} 46... Kf7 {[%clk
0:01:15]} 47. Ne3 {[%clk 0:01:09.3]} 47... Be6 {[%clk 0:01:14.3]} 48. g5 {[%clk
0:01:00.3]} 48... Nb3 {[%clk 0:01:13.6]} 49. Bxb3 {[%clk 0:00:59.6]} 49... cxb3
{[%clk 0:01:13.4]} 50. Nd1 {[%clk 0:01:00.2]} 50... Kg6 {[%clk 0:01:12.3]} 51.
Nb2 {[%clk 0:01:00.1]} 51... Kh5 {[%clk 0:01:11.7]} 52. Na4 {[%clk 0:00:57.8]}
52... Kg6 {[%clk 0:01:08.9]} 53. Ke3 {[%clk 0:00:56.2]} 53... Kxg5 {[%clk
0:01:08.8]} 54. Kd2 {[%clk 0:00:56.4]} 54... Kf4 {[%clk 0:01:08.6]} 55. Kc3
{[%clk 0:00:56.7]} 55... Ke3 {[%clk 0:01:05.6]} 56. Nc5 {[%clk 0:00:55.8]} 56...
b2 {[%clk 0:01:02.5]} 57. Kxb2 {[%clk 0:00:55.5]} 57... Kxd4 {[%clk 0:01:02.7]}
58. Nxe6+ {[%clk 0:00:55.4]} 58... Kxe5 {[%clk 0:01:02.9]} 59. Nc7 {[%clk
0:00:52]} 59... Ke4 {[%clk 0:01:02.5]} 60. Nxd5 {[%clk 0:00:49.9]} 1/2-1/2

[Event "*** Titled Tuesday Blitz"]
[Site "Chess.com"]
[Date "2020.05.26"]
[Round "3"]
[White "freshfoodcompany"]
[Black "Slovak_fighter2000"]
[Result "0-1"]
[WhiteElo "2217"]
[BlackElo "2487"]
[TimeControl "180+1"]
[EndTime "10:27:10 PDT"]
[Termination "Slovak_fighter2000 won by resignation"]

1. d4 {[%clk 0:03:00.9]} 1... e5 {[%clk 0:02:59.4]} 2. dxe5 {[%clk 0:03:00]}
2... Nc6 {[%clk 0:02:59.3]} 3. Nf3 {[%clk 0:02:58]} 3... Qe7 {[%clk 0:02:59.5]}
4. Bf4 {[%clk 0:02:55.8]} 4... Qb4+ {[%clk 0:02:59.1]} 5. Bd2 {[%clk 0:02:55.6]}
5... Qxb2 {[%clk 0:02:59]} 6. Nc3 {[%clk 0:02:55.8]} 6... Bb4 {[%clk 0:02:59.5]}
7. Rb1 {[%clk 0:02:54.8]} 7... Qxc3 {[%clk 0:02:59.9]} 8. Bxc3 {[%clk
0:02:53.7]} 8... Bxc3+ {[%clk 0:03:00.8]} 9. Nd2 {[%clk 0:02:53.9]} 9... Nxe5
{[%clk 0:03:00.6]} 10. e3 {[%clk 0:02:51.2]} 10... Nf6 {[%clk 0:02:59.9]} 11.
Rb3 {[%clk 0:02:49.8]} 11... Ba5 {[%clk 0:02:58.5]} 12. Be2 {[%clk 0:02:49.4]}
12... Ne4 {[%clk 0:02:56.5]} 13. c3 {[%clk 0:02:42.7]} 13... Nxc3 {[%clk
0:02:54.2]} 14. Qc2 {[%clk 0:02:38.1]} 14... Nxe2 {[%clk 0:02:51.6]} 15. Kxe2
{[%clk 0:02:37.6]} 15... O-O {[%clk 0:02:49.6]} 16. Rb5 {[%clk 0:02:34.6]} 16...
Nc6 {[%clk 0:02:48.8]} 17. Nc4 {[%clk 0:02:31.6]} 17... Bb6 {[%clk 0:02:46.5]}
18. Nxb6 {[%clk 0:02:30.4]} 18... axb6 {[%clk 0:02:47.4]} 19. Rd1 {[%clk
0:02:27.8]} 19... d6 {[%clk 0:02:46.8]} 20. f3 {[%clk 0:02:26.5]} 20... Be6
{[%clk 0:02:46.1]} 21. Rb2 {[%clk 0:02:24.7]} 21... Ra5 {[%clk 0:02:44.1]} 22.
Kf2 {[%clk 0:02:22.6]} 22... Rfa8 {[%clk 0:02:40.6]} 23. Ra1 {[%clk 0:02:19.7]}
23... Ne5 {[%clk 0:02:35.7]} 24. Qc3 {[%clk 0:02:15.7]} 24... Rc5 {[%clk
0:02:34.1]} 25. Qd4 {[%clk 0:02:12.8]} 25... Rd5 {[%clk 0:02:33.1]} 26. Qc3
{[%clk 0:01:55.7]} 26... Nd3+ {[%clk 0:02:31.9]} 27. Kg1 {[%clk 0:01:55.2]}
27... Nxb2 {[%clk 0:02:32.2]} 28. Qxb2 {[%clk 0:01:54.9]} 28... Rc5 {[%clk
0:02:30]} 29. a3 {[%clk 0:01:51.3]} 29... h6 {[%clk 0:02:28.8]} 30. Rc1 {[%clk
0:01:49.1]} 30... Bc4 {[%clk 0:02:20.9]} 31. Qb4 {[%clk 0:01:41.5]} 31... b5
{[%clk 0:02:19.3]} 32. Ra1 {[%clk 0:01:37.5]} 32... Ra4 {[%clk 0:02:17.6]} 33.
Qd2 {[%clk 0:01:35.6]} 33... Rc6 {[%clk 0:02:12.4]} 34. h3 {[%clk 0:01:33.6]}
34... b4 {[%clk 0:02:08.4]} 35. Qb2 {[%clk 0:01:22.6]} 35... Rca6 {[%clk
0:01:57.4]} 36. Rc1 {[%clk 0:01:13.1]} 36... bxa3 {[%clk 0:01:46.6]} 37. Qxb7
{[%clk 0:00:38.3]} 37... a2 {[%clk 0:01:42.1]} 38. Kh2 {[%clk 0:00:34.7]} 38...
a1=Q {[%clk 0:01:37.8]} 39. Rxa1 {[%clk 0:00:34]} 39... Rxa1 {[%clk 0:01:38.7]}
40. Qxc7 {[%clk 0:00:32.8]} 40... Be6 {[%clk 0:01:35.7]} 41. Qd8+ {[%clk
0:00:21.1]} 41... Kh7 {[%clk 0:01:34.7]} 42. e4 {[%clk 0:00:21.1]} 42... R1a2
{[%clk 0:01:30.2]} 43. Qe7 {[%clk 0:00:20]} 43... Rd2 {[%clk 0:01:27.2]} 44. Kg3
{[%clk 0:00:15]} 44... Raa2 {[%clk 0:01:25.7]} 45. Kf4 {[%clk 0:00:12.8]} 45...
Rxg2 {[%clk 0:01:23.6]} 46. Qxd6 {[%clk 0:00:09.6]} 46... Bxh3 {[%clk
0:01:21.3]} 47. Qe7 {[%clk 0:00:07.7]} 47... Be6 {[%clk 0:01:20.5]} 48. Qh4
{[%clk 0:00:06]} 48... g5+ {[%clk 0:01:19.7]} 0-1

[Event "*** Titled Tuesday Blitz"]
[Site "Chess.com"]
[Date "2020.05.26"]
[Round "3"]
[White "S_Kalvaitis"]
[Black "ChessTraining77"]
[Result "0-1"]
[WhiteElo "2329"]
[BlackElo "2534"]
[TimeControl "180+1"]
[EndTime "10:27:13 PDT"]
[Termination "ChessTraining77 won by resignation"]

1. d4 {[%clk 0:03:00.9]} 1... Nf6 {[%clk 0:02:58.7]} 2. Bf4 {[%clk 0:03:00.7]}
2... e6 {[%clk 0:02:55.7]} 3. Nf3 {[%clk 0:02:58.8]} 3... c5 {[%clk 0:02:55.4]}
4. e3 {[%clk 0:02:58.6]} 4... d5 {[%clk 0:02:55.3]} 5. Nbd2 {[%clk 0:02:53.5]}
5... Nh5 {[%clk 0:02:55.2]} 6. Bg3 {[%clk 0:02:52.3]} 6... Nxg3 {[%clk
0:02:54.4]} 7. hxg3 {[%clk 0:02:53.2]} 7... Nc6 {[%clk 0:02:54.1]} 8. c3 {[%clk
0:02:52.9]} 8... h6 {[%clk 0:02:53.1]} 9. Bd3 {[%clk 0:02:52.7]} 9... Bd7 {[%clk
0:02:52.7]} 10. Qe2 {[%clk 0:02:41.4]} 10... Qc7 {[%clk 0:02:43.7]} 11. O-O
{[%clk 0:02:39.8]} 11... Be7 {[%clk 0:02:36.3]} 12. e4 {[%clk 0:02:38]} 12...
dxe4 {[%clk 0:02:31.8]} 13. Nxe4 {[%clk 0:02:34.2]} 13... cxd4 {[%clk
0:02:30.5]} 14. cxd4 {[%clk 0:02:35.1]} 14... O-O {[%clk 0:02:24.4]} 15. Rad1
{[%clk 0:02:28.6]} 15... Rad8 {[%clk 0:02:21.7]} 16. a3 {[%clk 0:02:24.5]} 16...
Bc8 {[%clk 0:02:12.9]} 17. Bb1 {[%clk 0:02:19.6]} 17... g6 {[%clk 0:02:05.8]}
18. b4 {[%clk 0:02:10.1]} 18... a6 {[%clk 0:01:55.8]} 19. Rfe1 {[%clk
0:02:05.4]} 19... Kg7 {[%clk 0:01:54.8]} 20. Nc5 {[%clk 0:01:23.5]} 20... a5
{[%clk 0:01:53.4]} 21. b5 {[%clk 0:01:20.6]} 21... Nxd4 {[%clk 0:01:52.9]} 22.
Nxd4 {[%clk 0:01:13.2]} 22... Bxc5 {[%clk 0:01:51.7]} 23. Nb3 {[%clk 0:01:12.8]}
23... Bxa3 {[%clk 0:01:47]} 24. Qa2 {[%clk 0:00:59.7]} 24... Be7 {[%clk
0:01:43.1]} 25. Rc1 {[%clk 0:00:53.5]} 25... Qb6 {[%clk 0:01:40.4]} 26. Qxa5
{[%clk 0:00:35]} 26... Qxa5 {[%clk 0:01:39.5]} 27. Nxa5 {[%clk 0:00:35.9]} 27...
Bb4 {[%clk 0:01:39.5]} 28. Nc4 {[%clk 0:00:23.9]} 28... Bxe1 {[%clk 0:01:37.4]}
29. Rxe1 {[%clk 0:00:24.8]} 29... Rd5 {[%clk 0:01:23.8]} 30. Rc1 {[%clk
0:00:21.4]} 30... Rc5 {[%clk 0:01:22.4]} 31. Ba2 {[%clk 0:00:18.9]} 31... e5
{[%clk 0:01:20.6]} 32. Re1 {[%clk 0:00:15.6]} 32... Be6 {[%clk 0:01:20.2]} 33.
Nxe5 {[%clk 0:00:13.2]} 33... Bxa2 {[%clk 0:01:18.6]} 34. Nd7 {[%clk 0:00:13.8]}
34... Rxb5 {[%clk 0:01:18.5]} 35. Nxf8 {[%clk 0:00:13.8]} 35... Kxf8 {[%clk
0:01:18.7]} 36. Ra1 {[%clk 0:00:14.4]} 36... Be6 {[%clk 0:01:18.1]} 37. Ra8+
{[%clk 0:00:14.7]} 37... Ke7 {[%clk 0:01:17.4]} 38. Rh8 {[%clk 0:00:15.3]} 38...
h5 {[%clk 0:01:17.3]} 39. Rb8 {[%clk 0:00:14.4]} 39... Rb1+ {[%clk 0:01:16.9]}
40. Kh2 {[%clk 0:00:14.4]} 40... b5 {[%clk 0:01:16.7]} 41. f3 {[%clk 0:00:14]}
41... b4 {[%clk 0:01:16.8]} 42. g4 {[%clk 0:00:14.6]} 42... hxg4 {[%clk
0:01:16.3]} 43. fxg4 {[%clk 0:00:15.5]} 43... Bxg4 {[%clk 0:01:16.2]} 44. Kg3
{[%clk 0:00:16.4]} 44... Be6 {[%clk 0:01:16.2]} 45. Rb7+ {[%clk 0:00:16.9]}
45... Kf6 {[%clk 0:01:15.3]} 46. Rb5 {[%clk 0:00:17.5]} 46... b3 {[%clk
0:01:14.9]} 47. Kh2 {[%clk 0:00:17.5]} 47... Rc1 {[%clk 0:01:14.9]} 48. Kg3
{[%clk 0:00:16.8]} 48... Rc2 {[%clk 0:01:15]} 49. Kh2 {[%clk 0:00:16.8]} 49...
b2 {[%clk 0:01:15.3]} 50. Kg3 {[%clk 0:00:16.3]} 50... Ba2 {[%clk 0:01:15.3]}
51. Rb6+ {[%clk 0:00:16.2]} 51... Kg7 {[%clk 0:01:14.6]} 0-1